Cogmind - Beta 17.1 @@@ ROGUE MODE // 2026.09.11 @ 12:07:08 Player: Figgis Result: Self-destructed Performance ------------- Evolutions (4) 2000 Regions Visited (5) 1000 Robots Destroyed (42) 210 Value Destroyed (1259) 1259 Prototype IDs (17) 340 Alien Tech Used (0) 0 Bonus (800) 800 TOTAL SCORE: 5609 Bonus ------- Registered with UFD 300 Met Optimus in HQ 500 Cogmind --------- Core Integrity 758/850 Matter 290/300 Energy 20/100 System Corruption 7% Temperature Cool (0) Movement Treading (250) Ox1 Location -6/Factory Parts ------- > --- POWER (2) -------- (None) > --- PROPULSION (5) --- Spiked Treads Armored Treads > --- UTILITY (6) ------ Large Storage Unit Experimental Signal Interpreter Advanced Terrain Scanner Thermal Shield EM Shield > --- WEAPON (2) ------- Companion Sword (fused) > --- INVENTORY (15) --- Nuclear Core Advanced Treads Improved Heat Sink Energy Well (350) Advanced Weight Redist. System Advanced Terrain Scanner Improved Propulsion Shielding Scrapoid Pod Heavy Assault Rifle Battle Rifle Improved Grenade Launcher CPS Tube (2) Vortex Trap Vortex Trap Peak State ------------ > --- POWER ------------ Deuterium Engine Deuterium Engine > --- PROPULSION ------- Spiked Treads Armored Treads Advanced Treads > --- UTILITY ---------- Advanced Heat Sink Large Storage Unit Advanced Sensor Array Experimental Signal Interpreter Thermal Shield EM Shield > --- WEAPON ----------- Great Axe Companion Sword > --- INVENTORY -------- Nuclear Core Improved Heat Sink Energy Well Advanced Weight Redist. System Advanced Terrain Scanner Scrapoid Pod Heavy Assault Rifle Battle Rifle Improved Grenade Launcher CPS Tube Vortex Trap Vortex Trap [Rating: 57] Favorites ----------- Power Deuterium Engine Engine Deuterium Engine Power Core Light Nuclear Core Propulsion Light Treads Treads Light Treads Utility Large Storage Unit Device Improved Heat Sink Storage Large Storage Unit Processor Experimental Signal Interpreter Weapon Heavy Assault Rifle Energy Gun Medium Laser Ballistic Gun Heavy Assault Rifle Ballistic Cannon Battle Cannon Special Weapon Mining Laser Slashing Weapon Companion Sword Build | -11 -10 -10 -10 -8 -6 ------- Run | Yrd Mat Min Sub Scr Fac Slots Evolved 8 | . . . . . 8 Power 1 | . . . . . 1 Propulsion 3 | . . . . . 3 Utility 4 | . . . . . 4 Weapon . | . . . . . . Parts Attached 36 | 3 8 8 3 6 8 Power 5 | . 1 2 . 1 1 Engine 4 | . . 2 . 1 1 Core 1 | . 1 . . . . Reactor . | . . . . . . Propulsion 8 | 2 1 . 2 2 1 Treads 8 | 2 1 . 2 2 1 Leg . | . . . . . . Wheel . | . . . . . . Hover . | . . . . . . Flight . | . . . . . . Utility 11 | . 4 1 . . 6 Device 7 | . 1 1 . . 5 Storage 3 | . 3 . . . . Processor 1 | . . . . . 1 Hackware . | . . . . . . Protection . | . . . . . . Artifact . | . . . . . . Weapon 12 | 1 2 5 1 3 . Energy Gun 3 | . 2 1 . . . Energy Cannon . | . . . . . . Ballistic Gun 4 | 1 . 2 1 . . Ballistic Cannon 1 | . . 1 . . . Launcher . | . . . . . . Special Weapon 2 | . . 1 . 1 . Impact Weapon . | . . . . . . Slashing Weapon 2 | . . . . 2 . Piercing Weapon . | . . . . . . Special Melee Weapon . | . . . . . . Unidentified Prototypes 2 | . . . . 2 . Parts Lost 14 | . 1 5 3 . 5 Power 4 | . . 1 1 . 2 Propulsion 3 | . 1 . 2 . . Utility 3 | . . 1 . . 2 Weapon 4 | . . 3 . . 1 Highest Loss Streak 4 | . 1 3 3 . 4 To Critical Strikes . | . . . . . . Average Backups 8 | 2 4 8 8 10 9 Power 1 | 1 2 1 1 1 1 Propulsion 1 | . . 1 1 1 . Utility 1 | . . . 1 2 3 Weapon 3 | . 2 4 4 4 3 Tool/Special . | . . . . . . Unused Backups 15 | . . 1 . 6 8 Power 2 | . . . . 1 1 Propulsion . | . . . . . . Utility 5 | . . . . 1 4 Weapon 6 | . . 1 . 4 1 Tool/Special 2 | . . . . . 2 Average Slot Usage (%) 95 | . 88 98 99 99 78 Engine 9 | . . 2 13 14 11 Core 3 | . 10 11 . . . Treads 26 | . 27 28 27 28 19 Device 14 | . 10 13 14 14 21 Storage 12 | . 10 14 14 14 6 Energy Gun 4 | . 14 12 . . . Ballistic Gun 13 | . 14 3 20 19 . Ballistic Cannon 1 | . . 11 . . . Special Weapon 1 | . . . 7 . . Slashing Weapon 5 | . . . . 8 12 Peak Build Rating 57 | 3 11 13 12 29 57 Average Rating 18 | 2 9 12 11 18 51 On Entrance 10 | . 3 11 12 12 27 Avg Prop Armor Cover (%) 27 | 32 26 . . . . Naked Turns . | . . . . . . Heaviest Build 50 | 2 30 32 32 38 50 Greatest Support 62 | 3 40 40 40 42 62 Greatest Overweight (x) 1 | . . . 1 . 1 Average Overweight (x) . | . . . . . . Largest Inventory Capacity 15 | 5 15 15 15 15 15 Average Capacity 14 | 5 9 15 15 15 15 Most Carried 15 | 5 7 13 13 15 15 Average Carried 11 | 2 4 10 11 13 12 Final Capacity 15 | 5 15 15 15 15 15 Final Carried 15 | 5 7 12 13 14 15 Class Distribution -------------------- 82% | Mutant 8% | Derelict-Mutant 6% | Scavenger-Mutant Dominant Class ---------------- Mutant | -10/Materials Mutant | -10/Mines Mutant | -10/Subcaves Mutant | -8/Scraptown Derelict-Mutant | -6/Factory Resources | -11 -10 -10 -10 -8 -6 ----------- Run | Yrd Mat Min Sub Scr Fac Matter Collected 1043 | 183 262 171 206 10 211 Remotely . | . . . . . . Salvage Created 1511 | . 622 236 198 . 455 Parts 81 | . 32 23 11 . 15 Haulers Intercepted 1 | . 1 . . . . Recyclers Shooed 1 | . . . . . 1 Parts Field Recycled . | . . . . . . Retrieved Matter . | . . . . . . Parts Self-Destructed 7 | . . . 7 . . Prevented . | . . . . . . Parts Restored . | . . . . . . Kills | -11 -10 -10 -10 -8 -6 ------- Run | Yrd Mat Min Sub Scr Fac Combat Hostiles Destroyed 35 | . 13 9 6 . 7 Melee 7 | . . . . . 7 Guns 21 | . 13 2 6 . . Cannons 7 | . . 7 . . . Classes Destroyed 10 | . 6 1 1 . 2 Worker 2 | . 2 . . . . Tunneler 1 | . 1 . . . . Hauler 1 | . 1 . . . . Watcher 3 | . 2 . . . 1 Swarmer 10 | . 4 3 3 . . Grunt 18 | . 9 4 . . 5 Duelist 1 | . . . . . 1 Sentry 2 | . . 2 . . . Programmer 1 | . . . . . 1 Subdweller 3 | . . . 3 . . Best Kill Streak 5 | . 3 5 3 . 3 Combat Bots Only 5 | . 3 5 3 . 3 Max Kills in Single Turn 2 | . 2 1 1 . 1 Gunslinging 1 | . 1 . . . . Exploded . | . . . . . . Melee 1 | . . . . . 1 Uniques/NPCs Destroyed . | . . . . . . Combat | -11 -10 -10 -10 -8 -6 -------- Run | Yrd Mat Min Sub Scr Fac Hostile Shots Fired 235 | . 77 69 28 . 61 Missed 77 | . 26 23 10 . 18 Hits 158 | . 51 46 18 . 43 Melee 10 | . . . . . 10 Projectile 148 | . 51 46 18 . 33 Critical Strikes 7 | . 1 1 . . 5 Damage Taken 2200 | . 543 522 288 . 847 Core 294 | . 71 97 34 . 92 Absorbed by Shields . | . . . . . . Ignored by Resistances 117 | . . . . . 117 Core Remaining (%) 59 | 100 . . . 19 . Volleys Fired 118 | . 51 29 38 . . Largest 2 | . 2 2 2 . . Hottest 100 | . 70 100 100 . . Shots Fired 207 | . 102 46 59 . . Gun 165 | . 102 21 42 . . Cannon 21 | . . 21 . . . Launcher . | . . . . . . Special 21 | . . 4 17 . . Kinetic 122 | . 52 28 42 . . Thermal 85 | . 50 18 17 . . Explosive . | . . . . . . Electromagnetic . | . . . . . . Robot Hit Streak 12 | . 10 12 11 . . Robot Miss Streak 5 | . 5 3 1 . . Penetration Max . | . . . . . . Secondary Targets 2 | . 2 . . . . Max Gunslinging Chain 1 | . 1 . . . . Shots Hit Robots 165 | . 64 28 32 . 41 Core Hits 68 | . 31 16 10 . 11 Critical Kills . | . . . . . . Critical Parts Destroyed 1 | . . 1 . . . Critical Strikes 6 | . 2 4 . . . Burn 2 | . 2 . . . . Destroy 2 | . . 2 . . . Blast 2 | . . 2 . . . Melee Attacks 54 | . . . . . 54 Impact . | . . . . . . Slashing 54 | . . . . . 54 Piercing . | . . . . . . Sneak Attacks 1 | . . . . . 1 Combat Hostiles . | . . . . . . Follow-up Attacks 4 | . . . . . 4 Damage Inflicted 3185 | . 823 496 381 . 1485 Guns 1352 | . 823 148 381 . . Cannons 348 | . . 348 . . . Explosions . | . . . . . . Melee 1485 | . . . . . 1485 Ramming . | . . . . . . Kinetic 1189 | . 408 400 381 . . Thermal 511 | . 415 96 . . . Explosive . | . . . . . . Electromagnetic . | . . . . . . Impact . | . . . . . . Slashing 1485 | . . . . . 1485 Piercing . | . . . . . . Highest Corruption 7 | . 2 2 2 . 7 Average Corruption 3 | . 2 2 2 . 6 Corruption Purged . | . . . . . . Corruption Blocked . | . . . . . . Effects 59 | . 9 10 20 . 20 Message Errors 15 | . 5 3 2 . 5 Matter Fused 12 | . . 1 4 . 7 Heat Flow Errors 7 | . 2 1 4 . . Energy Discharges 11 | . 1 2 6 . 2 Parts Fused 2 | . . 1 . . 1 Data Loss (minor) 6 | . . 2 1 . 3 Misfires 2 | . 1 . 1 . . Alerts 3 | . . . 1 . 2 Weapon Failures 1 | . . . 1 . . Overload Shots . | . . . . . . Overflow Damage 93 | . . 9 . . 84 Projectiles 9 | . . 9 . . . Explosions . | . . . . . . Melee 84 | . . . . . 84 Knockbacks 1 | . . 1 . . . Impact . | . . . . . . Kinetic 1 | . . 1 . . . Secondary . | . . . . . . Self-Inflicted Damage . | . . . . . . Shots . | . . . . . . Rammed . | . . . . . . Targets Rammed . | . . . . . . Kicked . | . . . . . . Crushed . | . . . . . . Highest Temperature 231 | . 220 86 231 . . Average Temperature 72 | . 73 49 105 . . Received Heat Transfer 648 | . 204 192 . . 252 Siege Activations . | . . . . . . Martial Activations . | . . . . . . Shielding Activations . | . . . . . . Robots Disrupted . | . . . . . . Combat Hostiles . | . . . . . . Robots Corrupted . | . . . . . . Combat Hostiles . | . . . . . . Parts Fried . | . . . . . . Impact Corruptions . | . . . . . . Robots Melted . | . . . . . . Combat Hostiles . | . . . . . . Parts Melted 2 | . 2 . . . . Heat Transferred 1534 | . 1286 248 . . . Parts Sabotaged . | . . . . . . Parts Stolen . | . . . . . . Parts Stripped . | . . . . . . Power Chain Reactions . | . . . . . . Alert | -11 -10 -10 -10 -8 -6 ------- Run | Yrd Mat Min Sub Scr Fac Maximum Alert Level . | . . . . . . Low Security (%) 100 | 100 100 100 . . 100 Level 1 . | . . . . . . Level 2 . | . . . . . . Level 3 . | . . . . . . Level 4 . | . . . . . . Level 5 . | . . . . . . High Security . | . . . . . . Max Security . | . . . . . . Peak Influence 100 | . 100 78 . . 42 Initial 10 | . . 10 . . . Average 24 | . 46 14 . . 7 Influence Increases 888 | . 407 214 90 . 177 Destroy 0b10 Robot/C 640 | . 260 180 60 . 140 Destroy 0b10 Robot/NC 35 | . 30 . . . 5 Destroy Leader 128 | . 66 30 . . 32 Successful Hack 20 | . 20 . . . . Disable Machine 15 | . 15 . . . . Destroy Structure 5 | . 1 4 . . . Lose Combat Pursuer 45 | . 15 . 30 . . Influence Decreases 874 | . 380 189 70 72 163 Entered New Map 117 | . . 17 28 72 . Time Decay 651 | . 370 122 42 . 117 Lost Part 106 | . 10 50 . . 46 Squads Dispatched 5 | . 3 . . . 2 Investigation . | . . . . . . Extermination 1 | . . . . . 1 Reinforcement 4 | . 3 . . . 1 Assault . | . . . . . . Garrison . | . . . . . . Intercept . | . . . . . . Searches Triggered . | . . . . . . Construction Impeded . | . . . . . . Haulers Reinforced . | . . . . . . Active Scanning Responses . | . . . . . . Cargo Convoy Interrupts . | . . . . . . Stealth | -11 -10 -10 -10 -8 -6 --------- Run | Yrd Mat Min Sub Scr Fac Distress Signals 1 | . . . . . 1 Communications Jammed . | . . . . . . Distress Signals . | . . . . . . Times Spotted 52 | . 24 9 8 . 11 Peak Tracking Total 5 | . 3 5 3 . 3 Tactical Retreats 2 | . 1 . 1 . . Traps | -11 -10 -10 -10 -8 -6 ------- Run | Yrd Mat Min Sub Scr Fac Traps Triggered 3 | . 1 . . . 2 Indirectly . | . . . . . . Trap Hack Attempts . | . . . . . . Triggered . | . . . . . . Disarmed . | . . . . . . Reprogrammed . | . . . . . . Reused . | . . . . . . Traps Extracted . | . . . . . . Installed . | . . . . . . Triggered . | . . . . . . Most Traps Carried 3 | . . 3 3 3 2 Machines | -11 -10 -10 -10 -8 -6 ---------- Run | Yrd Mat Min Sub Scr Fac Machines Disabled 1 | . 1 . . . . Max in Single Turn 1 | . 1 . . . . Machines Repaired . | . . . . . . Machines Dismantled . | . . . . . . Machines Sabotaged . | . . . . . . Overloaded Fab Kills . | . . . . . . Hacking | -11 -10 -10 -10 -8 -6 --------- Run | Yrd Mat Min Sub Scr Fac Machines Accessed 15 | . 4 . . 10 1 Terminals 5 | . 4 . . . 1 Fabricators . | . . . . . . Repair Stations . | . . . . . . Recycling Units . | . . . . . . Scanalyzers . | . . . . . . Garrison Access . | . . . . . . Total Hacks 80 | . 10 . . 68 2 Successful 71 | . 3 . . 68 . Failed 9 | . 7 . . . 2 Catastrophic . | . . . . . . Database Lockouts . | . . . . . . Manual 5 | . 3 . . . 2 Terminals 12 | . 10 . . . 2 Fabricators . | . . . . . . Repair Stations . | . . . . . . Recycling Units . | . . . . . . Scanalyzers . | . . . . . . Garrison Access . | . . . . . . Terminal Hacks 70 | . 2 . . 68 . Record 66 | . . . . 66 . Prototype ID Bank 1 | . 1 . . . . Open Door 1 | . . . . 1 . Locate Traps 1 | . 1 . . . . Proto ID Catalog 1 | . . . . 1 . Fabricator Hacks . | . . . . . . Repair Station Hacks . | . . . . . . Recycling Unit Hacks . | . . . . . . Scanalyzer . | . . . . . . Garrison Access Hacks . | . . . . . . Unauthorized Hacks 1 | . 1 . . . . Terminals 1 | . 1 . . . . Assimilate 1 | . 1 . . . . Fabricators . | . . . . . . Repair Stations . | . . . . . . Recycling Units . | . . . . . . Scanalyzers . | . . . . . . Garrison Access . | . . . . . . Data Cores Recovered . | . . . . . . Used . | . . . . . . Hacking Detections 5 | . 4 . . . 1 Full Trace Events . | . . . . . . Feedback Events . | . . . . . . Feedback Blocked . | . . . . . . Robot Schematics Acquired . | . . . . . . Robots Built . | . . . . . . Authchips . | . . . . . . Time . | . . . . . . Total Robot Build Rating . | . . . . . . Part Schematics Acquired . | . . . . . . Parts Built . | . . . . . . Authchips . | . . . . . . Time . | . . . . . . Total Part Build Rating . | . . . . . . Part Studies Acquired . | . . . . . . Parts Repaired . | . . . . . . Time . | . . . . . . Parts Recycled . | . . . . . . Recycled Matter . | . . . . . . Retrieved Matter . | . . . . . . Retrieved Components . | . . . . . . Parts Scanalyzed . | . . . . . . Part Schematics Acquired . | . . . . . . Parts Damaged . | . . . . . . Bothacking | -11 -10 -10 -10 -8 -6 ------------ Run | Yrd Mat Min Sub Scr Fac Used RIF Installer . | . . . . . . Robots Hacked . | . . . . . . Non-combat . | . . . . . . Combat . | . . . . . . Robot Hacks Applied . | . . . . . . Relay Couplers Released . | . . . . . . Fabnet Peak Effective % . | . . . . . . Robots Rewired . | . . . . . . Allies Hacked . | . . . . . . Hacks Repelled . | . . . . . . Allies | -11 -10 -10 -10 -8 -6 -------- Run | Yrd Mat Min Sub Scr Fac Total Allies . | . . . . . . Largest Group . | . . . . . . Highest-Rated Group . | . . . . . . Highest-Rated Ally . | . . . . . . Initial UFD Resources 22 | . . . . . 22 Total Orders . | . . . . . . Ally Attacks . | . . . . . . Total Damage . | . . . . . . Kills . | . . . . . . Allies Corrupted . | . . . . . . Allies Melted . | . . . . . . Intel | -11 -10 -10 -10 -8 -6 ------- Run | Yrd Mat Min Sub Scr Fac Active Infowar (turns) 659 | . . . . . 659 Sensors 434 | . . . . . 434 Terrain 385 | . . . . . 385 Robot Analysis Total . | . . . . . . Derelict Logs Recovered 3 | . . 1 2 . . Drone Launches . | . . . . . . Drone Recoveries . | . . . . . . Exploration | -11 -10 -10 -10 -8 -6 ------------- Run | Yrd Mat Min Sub Scr Fac Turns Passed 6747 | 28 1097 975 1108 2750 789 Spaces Moved 3774 | 33 631 492 591 1645 382 Core 124 | 33 91 . . . . Treads 3650 | . 540 492 591 1645 382 Legs . | . . . . . . Wheels . | . . . . . . Hover . | . . . . . . Flight . | . . . . . . Fastest Speed 50 | 50 50 160 160 152 152 Average Speed 155 | 50 144 160 160 158 160 Slowest Speed 250 | 50 160 160 240 160 250 Overloaded Moves . | . . . . . . Propulsion Burnouts . | . . . . . . Robots Hopped . | . . . . . . Potential Cave-ins 2 | . . 2 . . . Cave-ins Triggered . | . . . . . . Exploration Rate (%) 49 | 3 91 71 32 90 12 Regions Visited 5 Branch Regions 3 Pre-discovered Areas 2 | . . . 2 . . Known Exits Taken 1 | . . 1 . . . Unknown Exits Taken 4 | 1 1 . 1 1 . Scrap Searched 7 | . . 2 2 3 . Spaces Dug 4 | . . 4 . . . Terrain Destroyed 6 | . . 6 . . . Melee . | . . . . . . Projectile 6 | . . 6 . . . AOE . | . . . . . . Terrain Rammed . | . . . . . . Walls Destroyed . | . . . . . . Machines Disabled . | . . . . . . Actions | -11 -10 -10 -10 -8 -6 --------- Run | Yrd Mat Min Sub Scr Fac Total 4342 | 43 717 626 660 1810 486 Wait 254 | . 16 86 20 94 38 Move 3769 | 32 630 491 590 1644 382 Hop . | . . . . . . Pick Up 67 | 8 9 11 4 27 8 Fast Attach 2 | . 1 . . . 1 Attach 25 | 3 4 5 3 3 7 Detach 2 | . . . . 2 . Swap 19 | . 3 3 5 5 3 Drop 32 | . 3 1 . 28 . Fire 118 | . 51 29 38 . . Melee 47 | . . . . . 47 Ram . | . . . . . . Kick . | . . . . . . Crush . | . . . . . . Escape Stasis . | . . . . . . Rewire 7 | . . . . 7 . Trap . | . . . . . . Miscellaneous . | . . . . . . Route ------- -11/Scrapyard -10/Materials (discovered 5 exits: [*Mat x3] / [*Min x2]) -10/Mines (discovered 2 exits: [*Mat] / *Sub) -10/Subcaves (discovered 2 exits: [*Rec] / *Scr) -8/Scraptown (discovered 2 exits: *Fac x2) -6/Factory History --------- Turn | Location | Event 16 | -11/Scrapyard | Discovered new exit (range 16) 29 | -11/Scrapyard | Entered Materials 71 | -10/Materials | Discovered new exit (range 16) 235 | -10/Materials | Discovered new exit (range 11) 316 | -10/Materials | Build established: Mutant 488 | -10/Materials | Discovered new exit (range 10) 740 | -10/Materials | Discovered new exit (range 10) 992 | -10/Materials | Discovered new exit (range 3) 1126 | -10/Materials | Entered Mines 1158 | -10/Mines | Identified exit to Subcaves 1246 | -10/Mines | A weapon hastily lodged in a ceiling crevice suddenly fell to the ground 1280 | -10/Mines | Received a Rocket Launcher from a helpful Derelict 1403 | -10/Mines | Found a hidden stash of uninstalled traps 1909 | -10/Mines | Core integrity fell below 50% 1941 | -10/Mines | Lost 3 parts (1p1u1w) 2012 | -10/Mines | Discovered new exit (range 5) 2101 | -10/Mines | Entered Subcaves 2102 | -10/Subcaves | Approached by a straggling Scientist 2754 | -10/Subcaves | Learned location of Zion (-6) 2820 | -10/Subcaves | Learned location of Storage (-8) 2878 | -10/Subcaves | A swath of the cavern ceiling suddenly collapsed 2890 | -10/Subcaves | Build established: Scavenger-Mutant 3021 | -10/Subcaves | Lost 3 parts (1p2n) 3067 | -10/Subcaves | Shifting Twisted Machinery released Shrapnel Trap 3127 | -10/Subcaves | Scientist uncovered a shortcut to Scraptown 3161 | -10/Subcaves | Core integrity fell below 20% 3177 | -10/Subcaves | Discovered new exit (range 10) 3209 | -10/Subcaves | Entered Scraptown 3209 | -8/Scraptown | System corruption cleaned by C-Scrubber 3367 | -8/Scraptown | Build established: Mutant 3617 | -8/Scraptown | Discovered new exit (range 5) 3719 | -8/Scraptown | Visited Shadow of the Wyrm 3735 | -8/Scraptown | Visited Spacefarers 3796 | -8/Scraptown | Visited Cyclists 3842 | -8/Scraptown | Visited Red Mages 4159 | -8/Scraptown | Visited Science Testing Area 4220 | -8/Scraptown | Visited UFD Registry 4252 | -8/Scraptown | Registered with UFD as "Deathbomber" 4273 | -8/Scraptown | Visited TADAMA 4292 | -8/Scraptown | Visited Fellowship of the Rings 4372 | -8/Scraptown | Entered Cyclist Reading Room 4473 | -8/Scraptown | Visited Science Guys 4546 | -8/Scraptown | Visited DA-N13 Charitable Foundation 4553 | -8/Scraptown | Found DCF Scrap (28 items) 4627 | -8/Scraptown | Visited Sword Containment 4644 | -8/Scraptown | Found Prototype Slashing Weapon 4645 | -8/Scraptown | Identified Companion Sword 4774 | -8/Scraptown | Visited Scrap Suit Storage 4840 | -8/Scraptown | Visited Supply Room 4886 | -8/Scraptown | Visited Scrapoid Pod Storage 4935 | -8/Scraptown | Found Scrapoid Pod 5063 | -8/Scraptown | Visited Scrapoid Research Area 5110 | -8/Scraptown | Visited Research Penetration Think Tank 5149 | -8/Scraptown | Visited Infowarlord's Domain 5160 | -8/Scraptown | Found Exp. Signal Interpreter 5193 | -8/Scraptown | Visited Junk Cannon Lab 5237 | -8/Scraptown | Found Prototype Special Weapon 5252 | -8/Scraptown | Identified Junk Cannon 5865 | -8/Scraptown | Met Optimus 5865 | -8/Scraptown | Accepted into 0bPrime 5952 | -8/Scraptown | Discovered new exit (range 5) 5959 | -8/Scraptown | Entered Factory 5959 | -6/Factory | Evolved 8 slots: Power x1, Propulsion x3, Utility x4 6657 | -6/Factory | Build established: Derelict-Mutant 6736 | -6/Factory | Lost 4 parts (2p1u1w) 6748 | -6/Factory | Self-destructed Last Messages --------------- Companion Sword: "Are we going to die?" 06681_ K-01 Serf collects debris. 06683_ Adv. Treads severed. 06685_ K-01 Serf collects debris. 06692_ Spk. Treads severed. 06693_ K-01 Serf collects debris. 06694_ Destroyed Carbon-fiber Leg. 06695_ K-01 Serf collects debris. 06702_ Destroyed Imp. Deuterium Engine. 06705_ Adv. Heat Sink destroyed. 06705_ Deuterium Engine destroyed. Companion Sword: "Slow and steady does not win battles. We should speed up." 06712_ L-41 Fighter destroyed. 06712_ K-01 Serf collects debris. 06717_ Acquired Adv. Treads. 06718_ K-01 Serf collects debris. 06725_ Acquired Spk. Treads. 06735_ Sneak attack on R-10 Processor. 06736_ System corrupted: Companion Sword fused. Map ----- +----------------------------------------------------+ | ?????????????????????????????????????????????????? | | ?????????????????????????????????????????????????? | | ?????????????????????????????????????????????????? | | ?????????????????????????????????????????????????? | | ?????????????????????????????????????????????????? | | ?????????????????????????????????????????????????? | | ???????????????????????????"?????????????????????? | | ?????????????????????????? ??? ??????????????????? | | ???????????????????#?????? ??????????????????????? | | ?????????????? ??????????"???????????????????????? | | ?????????????????????????"??"???"????????????????? | | ??????????????? ???????"?????????????#???????????? | | ????????? ?? ????????? ?????? ???????????????????? | | ?????????????????????#??????###?#??#?#???????????? | | ???????? ??????? ???????? #??????????????????? | | ?????? ?????????? ? ? ?? ?? ##?????????????????? | | ?????? ?????????????? ??? "T ! ??????????????????? | | ?????????????????????? ? #?????????#????????? | | ???????????? ?????? ????? [ #????????#?????????? | | ????????????? ?? ????????# #????#??????????????? | | ??????#??#????????????#??#m #????##???#?????????? | | ????????????#??########### #????????##?????????? | | ?????????#??##?# ## #?? ?? ?????????????? | | ????????????#??# ##k k##???? ?????? ??????? | | ????#?#????#???# !! # #?????? ? ?????????? | | ?????#?????#???# !! *#@"" ##???? ?? ?????????? | | ??????#???#????# !!%gk%T ! +? ??? ??????????? | | ??????????#????# ! # ##?????????????????? | | ??????#????????# # #??????????????????? | | ???????#??#????# ### ###?????"????????????? | | ????????#??????# #?# #?#?????????"????????? | | ??????????###########+##### #?#? ? ?? ???????????? | | ??????????# + #???? ? ? ???????????? | | ??????#???# # #???????? ????? ?????? | | ????????### # ##############???????? | | ?????????## # ??????? | | ??????????# # ??????? | | ??????????# ! + """"""?????????? | | ??????????# # % """"????"? ????? | | ??????????# # """"???????????? | | ??????????# ##### """""""????? ? | | ??????????# #???# """"""?"??? | | ??????????# #?#?# """""""""? | | ????????"?# ##?## | | ??????????##############???# """"""""" | | ???????????????????#????#??# """"""""" | | ?????????????#??????########+## """"""""" | | ????????????????????# ??# """"""""" | | ????????????????????# ?# """"""""" | | ????????????#???????# ?# """"""""" | +----------------------------------------------------+ Best States ------------- Heat Dissipation 56 Energy Generation 23 Energy Capacity 450 Matter Stores 300 Matter Capacity 300 Sight Range 16 Robot Scan Range 16 Terrain Scan Range 20 Terrain Scan Density 10 Resistance: TH 20 Resistance: EM 25 Evasion (%) 50 Recoil Reduction 3 Item Schematics ----------------- None Robot Schematics ------------------ None Fabricated ------------ Nothing Repaired ---------- Nothing Studied --------- None Alien Tech Used ----------------- None Achievements -------------- Bob, First Of His Name Nice Directions, Buddy Challenges ------------ None Game ------ Seed MolecularArcsightPod Manual? 0 Play Time 00:35:14 Cumulative 219.1 hours Start 2026.09.11 @ 11:32:22 End 2026.09.11 @ 12:07:08 Sessions 1 Manual Loads 0 Difficulty Rogue Special Mode None Game No. 344 Rogue 341 Adventurer 3 Explorer 0 Win Type - Total 1 Types 1/0/0/0/0/0/0/0/0/0 Lore% 67 Gallery% 57 Achievement% 33 Wizard Run 0 Options --------- Layout 0 ASCII 0 Keyboard 0 Movement Mouse Keybinds 0 Fullscreen 2 Font 18/SmallcapsGlow Map View 76x50 Zoom Use 0% Tactical HUD 1 Map Filters NONE Filters NONE Steam 1 RUN: d6fd501e-6688-40f0-bc30-c8716119695a